[Event "Titled Tuesday Blitz March 08 Early 2022"]
[White "Horobetz, Graham"]
[Black "Kushko, Dmitriy"]
[WhiteFideId "2047322"]
[BlackFideId "14162261"]
[WhiteElo "2638"]
[BlackElo "2225"]
[Result "1/2-1/2"]
[Round "08"]
[TimeControl "180+1"]
[Date "2022.03.09"]
[WhiteClock "0:00:01"]
[BlackClock "0:00:04"]

1. e4 {[%clk 0:02:59]}  d6 {[%clk 0:02:58]} 2. d4 {[%clk 0:02:59]}  Nf6 {[%clk 0:02:58]} 3. Nc3 {[%clk 0:02:59]}  g6 {[%clk 0:02:58]} 4. h3 {[%clk 0:02:58]}  Bg7 {[%clk 0:02:56]} 5. Nf3 {[%clk 0:02:59]}  O-O {[%clk 0:02:55]} 6. Be3 {[%clk 0:03:00]}  c6 {[%clk 0:02:56]} 7. a4 {[%clk 0:02:59]}  Qc7 {[%clk 0:02:56]} 8. Be2 {[%clk 0:02:56]}  e5 {[%clk 0:02:56]} 9. dxe5 {[%clk 0:02:54]}  dxe5 {[%clk 0:02:57]} 10. Bc4 {[%clk 0:02:54]}  Nh5 {[%clk 0:02:56]} 11. O-O {[%clk 0:02:30]}  Nf4 {[%clk 0:02:55]} 12. Re1 {[%clk 0:02:10]}  Be6 {[%clk 0:02:53]} 13. Bxe6 {[%clk 0:02:04]}  Nxe6 {[%clk 0:02:54]} 14. Qe2 {[%clk 0:02:03]}  Nd4 {[%clk 0:02:46]} 15. Qc4 {[%clk 0:01:58]}  Nxf3+ {[%clk 0:02:34]} 16. gxf3 {[%clk 0:01:57]}  Nd7 {[%clk 0:02:19]} 17. Rad1 {[%clk 0:01:57]}  Rac8 {[%clk 0:02:07]} 18. Kg2 {[%clk 0:01:41]}  Rfd8 {[%clk 0:02:03]} 19. Rd2 {[%clk 0:01:33]}  Nf8 {[%clk 0:01:51]} 20. Red1 {[%clk 0:01:18]}  Ne6 {[%clk 0:01:37]} 21. Rxd8+ {[%clk 0:01:16]}  Rxd8 {[%clk 0:01:37]} 22. Rxd8+ {[%clk 0:01:14]}  Qxd8 {[%clk 0:01:36]} 23. Qd3 {[%clk 0:01:02]}  Qxd3 {[%clk 0:01:04]} 24. cxd3 {[%clk 0:01:03]}  Nf4+ {[%clk 0:01:04]} 25. Bxf4 {[%clk 0:00:54]}  exf4 {[%clk 0:01:05]} 26. Kf1 {[%clk 0:00:30]}  a5 {[%clk 0:00:49]} 27. Ke2 {[%clk 0:00:29]}  Bd4 {[%clk 0:00:38]} 28. Nd1 {[%clk 0:00:17]}  Kf8 {[%clk 0:00:35]} 29. Kd2 {[%clk 0:00:17]}  Ke7 {[%clk 0:00:36]} 30. Kc2 {[%clk 0:00:18]}  Kd6 {[%clk 0:00:28]} 31. Kb3 {[%clk 0:00:18]}  Kc5 {[%clk 0:00:28]} 32. Nc3 {[%clk 0:00:17]}  Bxf2 {[%clk 0:00:28]} 33. Ne2 {[%clk 0:00:17]}  g5 {[%clk 0:00:24]} 34. Kc3 {[%clk 0:00:16]}  Be1+ {[%clk 0:00:24]} 35. Kc2 {[%clk 0:00:17]}  b5 {[%clk 0:00:18]} 36. axb5 {[%clk 0:00:16]}  cxb5 {[%clk 0:00:18]} 37. d4+ {[%clk 0:00:16]}  Kd6 {[%clk 0:00:15]} 38. Kd3 {[%clk 0:00:14]}  f6 {[%clk 0:00:11]} 39. b3 {[%clk 0:00:14]}  h5 {[%clk 0:00:10]} 40. d5 {[%clk 0:00:12]}  a4 {[%clk 0:00:07]} 41. bxa4 {[%clk 0:00:12]}  bxa4 {[%clk 0:00:08]} 42. Kc4 {[%clk 0:00:13]}  Ke5 {[%clk 0:00:07]} 43. Nd4 {[%clk 0:00:11]}  a3 {[%clk 0:00:07]} 44. Nc6+ {[%clk 0:00:10]}  Kd6 {[%clk 0:00:07]} 45. Kb3 {[%clk 0:00:10]}  g4 {[%clk 0:00:08]} 46. hxg4 {[%clk 0:00:10]}  hxg4 {[%clk 0:00:09]} 47. Nd4 {[%clk 0:00:06]}  g3 {[%clk 0:00:08]} 48. Ne2 {[%clk 0:00:04]}  g2 {[%clk 0:00:07]} 49. Kxa3 {[%clk 0:00:05]}  Bf2 {[%clk 0:00:07]} 50. Kb3 {[%clk 0:00:05]}  g1=Q {[%clk 0:00:08]} 51. Nxg1 {[%clk 0:00:05]}  Bxg1 {[%clk 0:00:08]} 52. Kb4 {[%clk 0:00:05]}  Be3 {[%clk 0:00:08]} 53. Kb5 {[%clk 0:00:05]}  Bg1 {[%clk 0:00:07]} 54. Kc4 {[%clk 0:00:05]}  Ba7 {[%clk 0:00:07]} 55. Kb5 {[%clk 0:00:06]}  Bb8 {[%clk 0:00:07]} 56. Kb6 {[%clk 0:00:06]}  Ke5 {[%clk 0:00:07]} 57. Kb7 {[%clk 0:00:05]}  Bd6 {[%clk 0:00:08]} 58. Kc6 {[%clk 0:00:06]}  Ba3 {[%clk 0:00:08]} 59. Kd7 {[%clk 0:00:04]}  Kd4 {[%clk 0:00:09]} 60. Ke6 {[%clk 0:00:04]}  Ke3 {[%clk 0:00:08]} 61. Kxf6 {[%clk 0:00:04]}  Kxf3 {[%clk 0:00:09]} 62. e5 {[%clk 0:00:05]}  Kg3 {[%clk 0:00:08]} 63. d6 {[%clk 0:00:05]}  f3 {[%clk 0:00:05]} 64. d7 {[%clk 0:00:05]}  f2 {[%clk 0:00:05]} 65. d8=Q {[%clk 0:00:04]}  f1=Q+ {[%clk 0:00:06]} 66. Ke6 {[%clk 0:00:05]}  Qa6+ {[%clk 0:00:06]} 67. Kf5 {[%clk 0:00:04]}  Qf1+ {[%clk 0:00:04]} 68. Ke6 {[%clk 0:00:04]}  Bc1 {[%clk 0:00:04]} 69. Qg8+ {[%clk 0:00:03]}  Kf3 {[%clk 0:00:05]} 70. Qf7+ {[%clk 0:00:03]}  Bf4 {[%clk 0:00:05]} 71. Qh5+ {[%clk 0:00:03]}  Ke3 {[%clk 0:00:05]} 72. Qf5 {[%clk 0:00:03]}  Qa6+ {[%clk 0:00:04]} 73. Kf7 {[%clk 0:00:03]}  Qb5 {[%clk 0:00:04]} 74. Kf6 {[%clk 0:00:03]}  Qb2 {[%clk 0:00:03]} 75. Ke6 {[%clk 0:00:01]}  Qb6+ {[%clk 0:00:02]} 76. Kf7 {[%clk 0:00:02]}  Qd4 {[%clk 0:00:03]} 77. Ke6 {[%clk 0:00:01]}  Qxe5+ {[%clk 0:00:03]} 78. Qxe5+ {[%clk 0:00:01]}  Bxe5 {[%clk 0:00:04]} 1/2-1/2


[Site "https://www.chess.com"]

[Event "Titled Tuesday Blitz March 08 Early 2022"]
[White "Iskusnyh, Sergei"]
[Black "Quirke, Jeffrey"]
[WhiteFideId "4120027"]
[BlackFideId "2013029"]
[WhiteElo "2492"]
[BlackElo "2128"]
[Result "0-1"]
[Round "08"]
[TimeControl "180+1"]
[Date "2022.03.09"]
[WhiteClock "0:00:01"]
[BlackClock "0:00:02"]

1. d4 {[%clk 0:03:00]}  d5 {[%clk 0:02:56]} 2. c4 {[%clk 0:03:00]}  c5 {[%clk 0:02:55]} 3. e3 {[%clk 0:02:55]}  cxd4 {[%clk 0:02:50]} 4. exd4 {[%clk 0:02:54]}  Nf6 {[%clk 0:02:47]} 5. Nc3 {[%clk 0:02:53]}  Nc6 {[%clk 0:02:41]} 6. Nf3 {[%clk 0:02:51]}  Bg4 {[%clk 0:02:40]} 7. cxd5 {[%clk 0:02:47]}  Nxd5 {[%clk 0:02:39]} 8. Be2 {[%clk 0:02:42]}  e6 {[%clk 0:02:24]} 9. O-O {[%clk 0:02:41]}  Be7 {[%clk 0:02:15]} 10. h3 {[%clk 0:02:41]}  Bh5 {[%clk 0:02:14]} 11. Qb3 {[%clk 0:02:10]}  O-O {[%clk 0:00:50]} 12. Rd1 {[%clk 0:02:06]}  Na5 {[%clk 0:00:42]} 13. Qa4 {[%clk 0:01:59]}  a6 {[%clk 0:00:38]} 14. Nxd5 {[%clk 0:01:37]}  Qxd5 {[%clk 0:00:38]} 15. Bd2 {[%clk 0:01:37]}  Nc6 {[%clk 0:00:32]} 16. Be3 {[%clk 0:01:24]}  b5 {[%clk 0:00:28]} 17. Qb3 {[%clk 0:01:23]}  Nb4 {[%clk 0:00:23]} 18. Qxd5 {[%clk 0:01:10]}  Nxd5 {[%clk 0:00:22]} 19. Rac1 {[%clk 0:01:10]}  Rfc8 {[%clk 0:00:21]} 20. g4 {[%clk 0:01:09]}  Bg6 {[%clk 0:00:20]} 21. Ne5 {[%clk 0:01:10]}  Bd6 {[%clk 0:00:12]} 22. Nxg6 {[%clk 0:00:59]}  hxg6 {[%clk 0:00:12]} 23. Bf3 {[%clk 0:00:58]}  Rab8 {[%clk 0:00:11]} 24. Kf1 {[%clk 0:00:37]}  Kf8 {[%clk 0:00:11]} 25. Bd2 {[%clk 0:00:29]}  Ke7 {[%clk 0:00:11]} 26. Re1 {[%clk 0:00:24]}  Kd7 {[%clk 0:00:10]} 27. Be4 {[%clk 0:00:17]}  Nf4 {[%clk 0:00:09]} 28. h4 {[%clk 0:00:15]}  Nd5 {[%clk 0:00:08]} 29. Kg2 {[%clk 0:00:14]}  Bf4 {[%clk 0:00:07]} 30. Bxf4 {[%clk 0:00:10]}  Nxf4+ {[%clk 0:00:08]} 31. Kf3 {[%clk 0:00:09]}  Nd5 {[%clk 0:00:08]} 32. Bxd5 {[%clk 0:00:09]}  exd5 {[%clk 0:00:08]} 33. g5 {[%clk 0:00:07]}  Rxc1 {[%clk 0:00:06]} 34. Rxc1 {[%clk 0:00:07]}  Re8 {[%clk 0:00:07]} 35. Rc3 {[%clk 0:00:02]}  Re4 {[%clk 0:00:06]} 36. Rd3 {[%clk 0:00:02]}  Rxh4 {[%clk 0:00:06]} 37. Rd1 {[%clk 0:00:02]}  Re4 {[%clk 0:00:05]} 38. a3 {[%clk 0:00:02]}  a5 {[%clk 0:00:05]} 39. b4 {[%clk 0:00:01]}  axb4 {[%clk 0:00:05]} 40. axb4 {[%clk 0:00:02]}  f6 {[%clk 0:00:04]} 41. Ra1 {[%clk 0:00:02]}  Rxd4 {[%clk 0:00:03]} 42. Ra7+ {[%clk 0:00:02]}  Ke6 {[%clk 0:00:04]} 43. Rxg7 {[%clk 0:00:02]}  fxg5 {[%clk 0:00:03]} 44. Rxg6+ {[%clk 0:00:02]}  Kf5 {[%clk 0:00:03]} 45. Rd6 {[%clk 0:00:02]}  Rxb4 {[%clk 0:00:02]} 46. Rxd5+ {[%clk 0:00:02]}  Kf6 {[%clk 0:00:01]} 47. Rc5 {[%clk 0:00:02]}  Rb3+ {[%clk 0:00:01]} 48. Kg4 {[%clk 0:00:02]}  Rb4+ {[%clk 0:00:01]} 49. Kg3 {[%clk 0:00:02]}  Rb3+ {[%clk 0:00:01]} 50. f3 {[%clk 0:00:02]}  b4 {[%clk 0:00:02]} 51. Rb5 {[%clk 0:00:02]}  Rb1 {[%clk 0:00:02]} 52. Kg2 {[%clk 0:00:02]}  b3 {[%clk 0:00:02]} 53. Kf2 {[%clk 0:00:02]}  b2 {[%clk 0:00:03]} 54. Kg2 {[%clk 0:00:02]}  Ke6 {[%clk 0:00:02]} 55. Rb8 {[%clk 0:00:02]}  Kf6 {[%clk 0:00:02]} 56. Rb3 {[%clk 0:00:01]}  Kf5 {[%clk 0:00:02]} 57. Rb4 {[%clk 0:00:01]}  Ke5 {[%clk 0:00:02]} 0-1


[Site "https://www.chess.com"]

[Event "Titled Tuesday Blitz March 08 Early 2022"]
[White "Jary, Sergey"]
[Black "Gaehwiler, Gabriel"]
[WhiteFideId "14110350"]
[BlackFideId "1314530"]
[WhiteElo "2260"]
[BlackElo "2383"]
[Result "1-0"]
[Round "08"]
[TimeControl "180+1"]
[Date "2022.03.08"]
[WhiteClock "0:00:46"]
[BlackClock "0:00:18"]

1. e4 {[%clk 0:02:59]}  e5 {[%clk 0:02:58]} 2. Nf3 {[%clk 0:02:59]}  Nf6 {[%clk 0:02:59]} 3. d4 {[%clk 0:02:59]}  Nxe4 {[%clk 0:02:57]} 4. Bd3 {[%clk 0:02:58]}  d5 {[%clk 0:02:55]} 5. Nxe5 {[%clk 0:02:58]}  Nd7 {[%clk 0:02:55]} 6. Nxd7 {[%clk 0:02:58]}  Bxd7 {[%clk 0:02:56]} 7. O-O {[%clk 0:02:58]}  Bd6 {[%clk 0:02:55]} 8. Qh5 {[%clk 0:02:40]}  c6 {[%clk 0:02:38]} 9. Nd2 {[%clk 0:02:35]}  Qe7 {[%clk 0:02:28]} 10. c4 {[%clk 0:02:25]}  g6 {[%clk 0:02:25]} 11. Qh6 {[%clk 0:02:22]}  f5 {[%clk 0:02:23]} 12. cxd5 {[%clk 0:02:18]}  cxd5 {[%clk 0:02:24]} 13. Nf3 {[%clk 0:02:15]}  Qf8 {[%clk 0:02:06]} 14. Re1 {[%clk 0:02:08]}  Qxh6 {[%clk 0:02:04]} 15. Bxh6 {[%clk 0:02:09]}  O-O-O {[%clk 0:01:54]} 16. Rac1+ {[%clk 0:02:04]}  Kb8 {[%clk 0:01:47]} 17. Ne5 {[%clk 0:02:04]}  Bb4 {[%clk 0:01:30]} 18. Bf4 {[%clk 0:01:55]}  Ka8 {[%clk 0:01:28]} 19. Rf1 {[%clk 0:01:49]}  Be8 {[%clk 0:01:22]} 20. f3 {[%clk 0:01:48]}  Nd6 {[%clk 0:01:20]} 21. Bg5 {[%clk 0:01:43]}  Rb8 {[%clk 0:01:15]} 22. a3 {[%clk 0:01:43]}  Ba5 {[%clk 0:01:14]} 23. Rc5 {[%clk 0:01:31]}  Bb6 {[%clk 0:01:09]} 24. Rxd5 {[%clk 0:01:28]}  Nf7 {[%clk 0:01:02]} 25. Nxf7 {[%clk 0:01:24]}  Bxf7 {[%clk 0:01:03]} 26. Rd6 {[%clk 0:01:25]}  h6 {[%clk 0:00:56]} 27. Bh4 {[%clk 0:01:20]}  Rhe8 {[%clk 0:00:55]} 28. Rc1 {[%clk 0:01:16]}  Re3 {[%clk 0:00:49]} 29. Rd1 {[%clk 0:01:16]}  Bb3 {[%clk 0:00:47]} 30. Bf2 {[%clk 0:01:12]}  Ree8 {[%clk 0:00:38]} 31. Rc1 {[%clk 0:01:12]}  Rbd8 {[%clk 0:00:36]} 32. Rxg6 {[%clk 0:01:08]}  f4 {[%clk 0:00:34]} 33. Rxh6 {[%clk 0:01:04]}  Bxd4 {[%clk 0:00:34]} 34. Bxd4 {[%clk 0:01:00]}  Rxd4 {[%clk 0:00:35]} 35. Be4 {[%clk 0:01:01]}  Rd2 {[%clk 0:00:26]} 36. Rh7 {[%clk 0:00:58]}  Rg8 {[%clk 0:00:24]} 37. Rg7 {[%clk 0:00:50]}  Re8 {[%clk 0:00:21]} 38. h4 {[%clk 0:00:50]}  Rxb2 {[%clk 0:00:18]} 39. Bxb7+ {[%clk 0:00:46]}  Kb8 {[%clk 0:00:18]} 40. Be4 {[%clk 0:00:46]} 1-0


[Site "https://www.chess.com"]

[Event "Titled Tuesday Blitz March 08 Early 2022"]
[White "Jaskolka, Tomasz"]
[Black "Samaganova, Aleksandra"]
[WhiteFideId "1170791"]
[BlackFideId "13800221"]
[WhiteElo "2073"]
[BlackElo "1859"]
[Result "1-0"]
[Round "08"]
[TimeControl "180+1"]
[Date "2022.03.09"]
[WhiteClock "0:00:45"]
[BlackClock "0:00:02"]

1. d4 {[%clk 0:02:59]}  Nf6 {[%clk 0:02:59]} 2. Bf4 {[%clk 0:02:59]}  e6 {[%clk 0:02:59]} 3. e3 {[%clk 0:02:58]}  b6 {[%clk 0:03:00]} 4. Nf3 {[%clk 0:02:58]}  Bb7 {[%clk 0:02:59]} 5. Nbd2 {[%clk 0:02:58]}  c5 {[%clk 0:03:00]} 6. Nc4 {[%clk 0:02:58]}  d5 {[%clk 0:02:59]} 7. Nce5 {[%clk 0:02:58]}  a6 {[%clk 0:02:57]} 8. Ng5 {[%clk 0:02:56]}  Qc8 {[%clk 0:02:26]} 9. Ngxf7 {[%clk 0:02:46]}  Rg8 {[%clk 0:02:21]} 10. c3 {[%clk 0:02:46]}  b5 {[%clk 0:02:07]} 11. Bd3 {[%clk 0:02:33]}  Nc6 {[%clk 0:01:59]} 12. Nxc6 {[%clk 0:02:33]}  Bxc6 {[%clk 0:01:58]} 13. Ne5 {[%clk 0:02:33]}  g5 {[%clk 0:01:56]} 14. Bg3 {[%clk 0:02:30]}  h6 {[%clk 0:01:33]} 15. Qf3 {[%clk 0:02:27]}  Bg7 {[%clk 0:01:24]} 16. Bg6+ {[%clk 0:02:27]}  Ke7 {[%clk 0:01:22]} 17. h4 {[%clk 0:02:05]}  Rf8 {[%clk 0:01:09]} 18. hxg5 {[%clk 0:01:51]}  hxg5 {[%clk 0:01:08]} 19. Qe2 {[%clk 0:01:41]}  b4 {[%clk 0:00:59]} 20. cxb4 {[%clk 0:01:35]}  Bb5 {[%clk 0:00:57]} 21. Qd2 {[%clk 0:01:28]}  cxd4 {[%clk 0:00:53]} 22. Rc1 {[%clk 0:01:19]}  Qb7 {[%clk 0:00:49]} 23. exd4 {[%clk 0:01:16]}  Rac8 {[%clk 0:00:38]} 24. Rc5 {[%clk 0:01:16]}  Rxc5 {[%clk 0:00:34]} 25. bxc5 {[%clk 0:01:14]}  Bc4 {[%clk 0:00:23]} 26. b3 {[%clk 0:01:12]}  Bb5 {[%clk 0:00:22]} 27. Qxg5 {[%clk 0:01:08]}  Be8 {[%clk 0:00:08]} 28. Bxe8 {[%clk 0:01:05]}  Kxe8 {[%clk 0:00:08]} 29. O-O {[%clk 0:00:49]}  Rg8 {[%clk 0:00:02]} 30. c6 {[%clk 0:00:48]}  Qe7 {[%clk 0:00:02]} 31. Qg6+ {[%clk 0:00:45]} 1-0


[Site "https://www.chess.com"]

[Event "Titled Tuesday Blitz March 08 Early 2022"]
[White "Jumabayev, Rinat"]
[Black "Talibov, Shiroghlan"]
[WhiteFideId "13702661"]
[BlackFideId "13429078"]
[WhiteElo "2561"]
[BlackElo "2070"]
[Result "1/2-1/2"]
[Round "08"]
[TimeControl "180+1"]
[Date "2022.03.08"]
[WhiteClock "0:00:06"]
[BlackClock "0:00:04"]

1. d4 {[%clk 0:03:00]}  d5 {[%clk 0:02:59]} 2. c4 {[%clk 0:03:01]}  e6 {[%clk 0:02:56]} 3. Nf3 {[%clk 0:03:01]}  c6 {[%clk 0:02:55]} 4. g3 {[%clk 0:03:01]}  f5 {[%clk 0:02:55]} 5. Bg2 {[%clk 0:02:58]}  Nf6 {[%clk 0:02:55]} 6. O-O {[%clk 0:02:58]}  Bd6 {[%clk 0:02:55]} 7. b3 {[%clk 0:02:58]}  Qe7 {[%clk 0:02:55]} 8. a4 {[%clk 0:02:58]}  O-O {[%clk 0:02:53]} 9. Ba3 {[%clk 0:02:58]}  Bxa3 {[%clk 0:02:52]} 10. Nxa3 {[%clk 0:02:59]}  Nbd7 {[%clk 0:02:51]} 11. a5 {[%clk 0:02:56]}  Ne4 {[%clk 0:02:46]} 12. Nc2 {[%clk 0:02:56]}  a6 {[%clk 0:02:45]} 13. Nce1 {[%clk 0:02:55]}  g5 {[%clk 0:02:40]} 14. Nd3 {[%clk 0:02:54]}  g4 {[%clk 0:02:39]} 15. Nfe5 {[%clk 0:02:55]}  Nxe5 {[%clk 0:02:36]} 16. Nxe5 {[%clk 0:02:56]}  Bd7 {[%clk 0:02:31]} 17. f3 {[%clk 0:02:55]}  gxf3 {[%clk 0:02:29]} 18. exf3 {[%clk 0:02:56]}  Nf6 {[%clk 0:02:27]} 19. Re1 {[%clk 0:02:49]}  Kh8 {[%clk 0:02:27]} 20. Qd2 {[%clk 0:02:47]}  Rg8 {[%clk 0:02:26]} 21. Re2 {[%clk 0:02:42]}  Raf8 {[%clk 0:02:21]} 22. Rae1 {[%clk 0:02:43]}  Bc8 {[%clk 0:02:20]} 23. Nd3 {[%clk 0:02:41]}  Qg7 {[%clk 0:02:10]} 24. Nf4 {[%clk 0:02:40]}  Re8 {[%clk 0:02:07]} 25. Nxe6 {[%clk 0:02:36]}  Bxe6 {[%clk 0:02:05]} 26. Rxe6 {[%clk 0:02:37]}  Ne4 {[%clk 0:02:05]} 27. fxe4 {[%clk 0:02:14]}  Rxe6 {[%clk 0:02:04]} 28. cxd5 {[%clk 0:02:14]}  cxd5 {[%clk 0:02:02]} 29. e5 {[%clk 0:02:14]}  Rd8 {[%clk 0:01:54]} 30. Bh3 {[%clk 0:02:05]}  Rf8 {[%clk 0:01:47]} 31. Rf1 {[%clk 0:02:05]}  Qg6 {[%clk 0:01:12]} 32. Rf4 {[%clk 0:02:00]}  Re7 {[%clk 0:01:10]} 33. Qd3 {[%clk 0:01:42]}  Ref7 {[%clk 0:01:09]} 34. Kg2 {[%clk 0:01:41]}  Qe6 {[%clk 0:00:58]} 35. Qc2 {[%clk 0:01:34]}  Rc8 {[%clk 0:00:55]} 36. Qf2 {[%clk 0:01:24]}  Rcf8 {[%clk 0:00:54]} 37. Kg1 {[%clk 0:01:22]}  Qc8 {[%clk 0:00:44]} 38. Bf1 {[%clk 0:01:15]}  Qc3 {[%clk 0:00:36]} 39. h4 {[%clk 0:00:58]}  Rg8 {[%clk 0:00:31]} 40. Kh2 {[%clk 0:00:56]}  Qxb3 {[%clk 0:00:30]} 41. Bh3 {[%clk 0:00:53]}  Rc8 {[%clk 0:00:25]} 42. e6 {[%clk 0:00:47]}  Rc2 {[%clk 0:00:22]} 43. exf7 {[%clk 0:00:46]}  Rxf2+ {[%clk 0:00:21]} 44. Rxf2 {[%clk 0:00:47]}  Kg7 {[%clk 0:00:22]} 45. Rxf5 {[%clk 0:00:37]}  Qc2+ {[%clk 0:00:22]} 46. Kg1 {[%clk 0:00:32]}  Kf8 {[%clk 0:00:22]} 47. Rf4 {[%clk 0:00:30]}  Qd1+ {[%clk 0:00:20]} 48. Kh2 {[%clk 0:00:29]}  Qd2+ {[%clk 0:00:20]} 49. Bg2 {[%clk 0:00:29]}  Qxa5 {[%clk 0:00:20]} 50. Rf5 {[%clk 0:00:25]}  Qd2 {[%clk 0:00:18]} 51. Kh3 {[%clk 0:00:22]}  Qxd4 {[%clk 0:00:14]} 52. Bxd5 {[%clk 0:00:22]}  h6 {[%clk 0:00:07]} 53. Bxb7 {[%clk 0:00:14]}  Qd7 {[%clk 0:00:07]} 54. Be4 {[%clk 0:00:14]}  Qe6 {[%clk 0:00:07]} 55. Bb1 {[%clk 0:00:05]}  a5 {[%clk 0:00:07]} 56. Kg2 {[%clk 0:00:03]}  a4 {[%clk 0:00:08]} 57. Rf2 {[%clk 0:00:04]}  a3 {[%clk 0:00:06]} 58. Ba2 {[%clk 0:00:04]}  Qe4+ {[%clk 0:00:05]} 59. Kh2 {[%clk 0:00:04]}  Qe3 {[%clk 0:00:05]} 60. Rc2 {[%clk 0:00:05]}  Kg7 {[%clk 0:00:02]} 61. h5 {[%clk 0:00:04]}  Qe4 {[%clk 0:00:03]} 62. Rf2 {[%clk 0:00:04]}  Kf8 {[%clk 0:00:03]} 63. Rd2 {[%clk 0:00:04]}  Kg7 {[%clk 0:00:01]} 64. Rf2 {[%clk 0:00:04]}  Kf8 {[%clk 0:00:01]} 65. Kh3 {[%clk 0:00:04]}  Qe5 {[%clk 0:00:01]} 66. Kg4 {[%clk 0:00:03]}  Qg5+ {[%clk 0:00:02]} 67. Kh3 {[%clk 0:00:04]}  Qxh5+ {[%clk 0:00:03]} 68. Kg2 {[%clk 0:00:04]}  Qe5 {[%clk 0:00:03]} 69. Rd2 {[%clk 0:00:04]}  Qe4+ {[%clk 0:00:03]} 70. Kh2 {[%clk 0:00:04]}  Kg7 {[%clk 0:00:04]} 71. Rf2 {[%clk 0:00:04]}  Kf8 {[%clk 0:00:04]} 72. Rd2 {[%clk 0:00:04]}  Kg7 {[%clk 0:00:03]} 73. Rd8 {[%clk 0:00:04]}  Qe2+ {[%clk 0:00:02]} 74. Kh3 {[%clk 0:00:05]}  Qh5+ {[%clk 0:00:02]} 75. Kg2 {[%clk 0:00:05]}  Qe2+ {[%clk 0:00:03]} 76. Kh3 {[%clk 0:00:05]}  Qh5+ {[%clk 0:00:03]} 77. Kg2 {[%clk 0:00:06]}  Qe2+ {[%clk 0:00:04]} 78. Kh3 {[%clk 0:00:06]} 1/2-1/2


[Site "https://www.chess.com"]

[Event "Titled Tuesday Blitz March 08 Early 2022"]
[White "Kanyamarala, Trisha"]
[Black "Maung, Maung Kyaw Zaw Hein"]
[WhiteFideId "45004722"]
[BlackFideId "13001698"]
[WhiteElo "2047"]
[BlackElo "1785"]
[Result "0-1"]
[Round "08"]
[TimeControl "180+1"]
[Date "2022.03.09"]
[WhiteClock "0:00:05"]
[BlackClock "0:00:08"]

1. c4 {[%clk 0:02:54]}  c6 {[%clk 0:02:59]} 2. Nc3 {[%clk 0:02:54]}  d5 {[%clk 0:02:59]} 3. e3 {[%clk 0:02:53]}  Nf6 {[%clk 0:02:59]} 4. Nf3 {[%clk 0:02:53]}  Bg4 {[%clk 0:02:58]} 5. Be2 {[%clk 0:02:53]}  Nbd7 {[%clk 0:02:57]} 6. O-O {[%clk 0:02:52]}  e6 {[%clk 0:02:57]} 7. d4 {[%clk 0:02:52]}  Bd6 {[%clk 0:02:57]} 8. b3 {[%clk 0:02:51]}  O-O {[%clk 0:02:57]} 9. Bb2 {[%clk 0:02:51]}  Qe7 {[%clk 0:02:54]} 10. h3 {[%clk 0:02:48]}  Bh5 {[%clk 0:02:46]} 11. Qc2 {[%clk 0:02:46]}  dxc4 {[%clk 0:02:39]} 12. bxc4 {[%clk 0:02:45]}  e5 {[%clk 0:02:38]} 13. Ng5 {[%clk 0:02:38]}  Bxe2 {[%clk 0:02:25]} 14. Qxe2 {[%clk 0:02:38]}  e4 {[%clk 0:02:10]} 15. d5 {[%clk 0:02:35]}  h6 {[%clk 0:02:07]} 16. dxc6 {[%clk 0:02:24]}  bxc6 {[%clk 0:02:01]} 17. Ngxe4 {[%clk 0:02:15]}  Nxe4 {[%clk 0:02:00]} 18. Nxe4 {[%clk 0:02:10]}  Qxe4 {[%clk 0:01:59]} 19. Rfd1 {[%clk 0:02:08]}  Qe6 {[%clk 0:01:14]} 20. f4 {[%clk 0:01:42]}  Bc5 {[%clk 0:01:13]} 21. Rd3 {[%clk 0:01:38]}  Rfe8 {[%clk 0:01:07]} 22. Rad1 {[%clk 0:01:36]}  Nb6 {[%clk 0:01:01]} 23. Kh1 {[%clk 0:01:22]}  Nxc4 {[%clk 0:00:57]} 24. Bc3 {[%clk 0:01:21]}  Nxe3 {[%clk 0:00:53]} 25. Rc1 {[%clk 0:01:20]}  Bb6 {[%clk 0:00:41]} 26. Qf3 {[%clk 0:01:16]}  Nd5 {[%clk 0:00:40]} 27. Ba1 {[%clk 0:01:08]}  Rac8 {[%clk 0:00:31]} 28. f5 {[%clk 0:01:07]}  Qd7 {[%clk 0:00:22]} 29. Qg4 {[%clk 0:01:05]}  f6 {[%clk 0:00:18]} 30. Qg6 {[%clk 0:01:04]}  Qf7 {[%clk 0:00:17]} 31. Qg4 {[%clk 0:01:01]}  Ne3 {[%clk 0:00:16]} 32. Qg3 {[%clk 0:00:57]}  Nxf5 {[%clk 0:00:15]} 33. Qf4 {[%clk 0:00:56]}  Ne7 {[%clk 0:00:11]} 34. Rd7 {[%clk 0:00:53]}  Nd5 {[%clk 0:00:10]} 35. Qf5 {[%clk 0:00:49]}  Qe6 {[%clk 0:00:09]} 36. Qxe6+ {[%clk 0:00:43]}  Rxe6 {[%clk 0:00:09]} 37. Rxd5 {[%clk 0:00:39]}  cxd5 {[%clk 0:00:08]} 38. Rxc8+ {[%clk 0:00:35]}  Kf7 {[%clk 0:00:08]} 39. Bc3 {[%clk 0:00:30]}  d4 {[%clk 0:00:08]} 40. Bd2 {[%clk 0:00:29]}  Re2 {[%clk 0:00:08]} 41. Bb4 {[%clk 0:00:27]}  d3 {[%clk 0:00:07]} 42. Rc1 {[%clk 0:00:26]}  d2 {[%clk 0:00:07]} 43. Rd1 {[%clk 0:00:25]}  Be3 {[%clk 0:00:04]} 44. Kh2 {[%clk 0:00:25]}  Ke6 {[%clk 0:00:04]} 45. Kg3 {[%clk 0:00:24]}  Rf2 {[%clk 0:00:03]} 46. a4 {[%clk 0:00:16]}  Kd5 {[%clk 0:00:03]} 47. Bxd2 {[%clk 0:00:13]}  Rxd2 {[%clk 0:00:04]} 48. Re1 {[%clk 0:00:13]}  Ke4 {[%clk 0:00:04]} 49. Rb1 {[%clk 0:00:12]}  Rd4 {[%clk 0:00:03]} 50. Rb7 {[%clk 0:00:12]}  Bf4+ {[%clk 0:00:04]} 51. Kg4 {[%clk 0:00:11]}  Rxa4 {[%clk 0:00:04]} 52. Re7+ {[%clk 0:00:11]}  Be5 {[%clk 0:00:04]} 53. Rxg7 {[%clk 0:00:10]}  a5 {[%clk 0:00:05]} 54. Kh5 {[%clk 0:00:09]}  Ra1 {[%clk 0:00:05]} 55. Kxh6 {[%clk 0:00:10]}  a4 {[%clk 0:00:05]} 56. Ra7 {[%clk 0:00:10]}  a3 {[%clk 0:00:06]} 57. g4 {[%clk 0:00:10]}  a2 {[%clk 0:00:07]} 58. h4 {[%clk 0:00:10]}  Kf4 {[%clk 0:00:05]} 59. Kg6 {[%clk 0:00:08]}  Ke4 {[%clk 0:00:04]} 60. Ra4+ {[%clk 0:00:08]}  Kd5 {[%clk 0:00:04]} 61. h5 {[%clk 0:00:08]}  Rg1 {[%clk 0:00:02]} 62. Rxa2 {[%clk 0:00:07]}  Rxg4+ {[%clk 0:00:02]} 63. Kf7 {[%clk 0:00:08]}  Rh4 {[%clk 0:00:02]} 64. Kg6 {[%clk 0:00:07]}  Ke4 {[%clk 0:00:02]} 65. h6 {[%clk 0:00:06]}  f5 {[%clk 0:00:02]} 66. Ra4+ {[%clk 0:00:04]}  Bd4 {[%clk 0:00:01]} 67. h7 {[%clk 0:00:05]}  f4 {[%clk 0:00:02]} 68. Kg5 {[%clk 0:00:02]}  Rh2 {[%clk 0:00:02]} 69. Kg6 {[%clk 0:00:02]}  f3 {[%clk 0:00:02]} 70. Ra8 {[%clk 0:00:01]}  f2 {[%clk 0:00:02]} 71. Re8+ {[%clk 0:00:02]}  Kd3 {[%clk 0:00:03]} 72. Rf8 {[%clk 0:00:03]}  Ke2 {[%clk 0:00:02]} 73. Re8+ {[%clk 0:00:03]}  Be3 {[%clk 0:00:03]} 74. Rxe3+ {[%clk 0:00:02]}  Kxe3 {[%clk 0:00:03]} 75. Kg7 {[%clk 0:00:02]}  Rxh7+ {[%clk 0:00:04]} 76. Kxh7 {[%clk 0:00:02]}  f1=Q {[%clk 0:00:05]} 77. Kg6 {[%clk 0:00:03]}  Ke4 {[%clk 0:00:05]} 78. Kg5 {[%clk 0:00:04]}  Ke5 {[%clk 0:00:06]} 79. Kg6 {[%clk 0:00:05]}  Qf8 {[%clk 0:00:06]} 80. Kg5 {[%clk 0:00:06]}  Qg7+ {[%clk 0:00:07]} 81. Kh4 {[%clk 0:00:05]}  Kf4 {[%clk 0:00:07]} 82. Kh5 {[%clk 0:00:05]}  Qh7# {[%clk 0:00:08]} 0-1


[Site "https://www.chess.com"]